bitfinex/quotes_SOLUSD_20251118
["timestamp","ask_amount","ask_price","bid_price","bid_amount"]
[1763483033303,0.66,141.25,141.21,14.09778689]
[1763483033513,0.66,141.25,141.21,4.38]
[1763483033814,9.71778689,141.24,141.19,19.50661458]
[1763483033992,9.71778689,141.24,141.2,4.38]
[1763483034197,10.37778689,141.23,141.18,9.71778689]
[1763483034519,9.71778689,141.21,141.19,4.38]
[1763483034715,0.66,141.22,141.19,4.38]
[1763483034916,18.12096,141.26,141.2,9.78882769]
[1763483034917,9.71778689,141.24,141.2,9.78882769]
[1763483035217,9.71778689,141.24,141.19,14.09778689]
[1763483035218,9.71778689,141.23,141.19,4.38]
[1763483035594,4.38,141.28,141.19,4.38]
[1763483035796,0.66,141.27,141.19,4.38]
[1763483036322,9.71778689,141.24,141.19,14.09778689]
[1763483036504,0.66,141.27,141.19,14.09778689]
[1763483036703,9.71778689,141.25,141.2,19.50661458]
[1763483037142,9.71778689,141.25,141.2,9.78882769]
[1763483037143,0.66,141.24,141.2,9.78882769]
[1763483037460,0.66,141.24,141.2,19.50661458]
[1763483037838,0.66,141.24,141.16,0.55841598]
[1763483037839,9.71778689,141.21,141.16,0.55841598]
[1763483037994,9.71778689,141.21,141.05,0.69]
[1763483037995,18.12096,141.14,141.05,0.69]
[1763483038193,18.12096,141.14,141.06,4.4]
[1763483038393,9.71778689,141.13,141.06,0.69]
[1763483038595,18.12096,141.17,141.07,5.09]
[1763483038816,9.71778689,141.1,141.07,5.09]
[1763483039225,9.71778689,141.11,141.08,0.69]
[1763483040017,4.71915678,141.18,141.07,4.4]
[1763483040018,9.71778689,141.1,141.07,4.4]
[1763483040208,0.58,141.14,141.04,0.69]
[1763483040209,9.71778689,141.08,141.04,0.69]
[1763483040420,6.31701493,141.2,141.05,14.87882769]
[1763483040610,9.71778689,141.12,141.06,9.71778689]
[1763483040926,9.71778689,141.12,141.08,9.78882769]
[1763483041097,9.71778689,141.12,141.09,4.4]
[1763483041305,9.71778689,141.12,141.09,5.09]
[1763483041746,18.70096,141.17,141.11,9.78882769]
[1763483041908,9.71778689,141.14,141.12,4.4]
[1763483042109,9.71778689,141.13,141.12,4.4]
[1763483043920,18.12096,141.19,141.12,4.4]
[1763483043921,9.71778689,141.15,141.12,5.09]
[1763483044123,9.71778689,141.17,141.13,0.69]
[1763483044326,9.71778689,141.18,141.13,0.69]
[1763483044519,9.71778689,141.16,141.13,0.69]
[1763483044838,9.71778689,141.16,141.14,4.4]
[1763483045022,9.71778689,141.17,141.14,4.4]
[1763483045440,9.71778689,141.17,141.14,5.09]
[1763483045616,9.71778689,141.16,141.14,5.09]
[1763483045939,9.71778689,141.16,141.09,18.12096]
[1763483045940,9.71778689,141.16,141.11,0.69]
[1763483046127,9.71778689,141.15,141.12,4.4]
[1763483046646,0.58,141.24,141.14,19.50661458]
[1763483046960,9.71778689,141.23,141.16,19.50661458]
[1763483047145,9.71778689,141.22,141.18,9.78882769]
[1763483047642,9.71778689,141.21,141.17,4.4]
[1763483047948,9.71778689,141.23,141.19,0.69]
[1763483048244,9.71778689,141.22,141.19,0.69]
[1763483048422,9.71778689,141.2,141.15,0.69]
[1763483048629,9.71778689,141.18,141.16,4.4]
[1763483048843,9.71778689,141.17,141.04,0.70901871]
[1763483049031,9.71778689,141.13,141.09,0.69]
[1763483049343,0.73,141.17,141.07,4.4]
[1763483049344,9.71778689,141.1,141.07,4.4]
[1763483049547,9.71778689,141.08,141.02,18.12096]
[1763483049725,9.71778689,141.08,141.03,5.09]
[1763483050135,9.71778689,141.08,141.04,0.69]
[1763483050320,9.71778689,141.09,141.04,0.69]
[1763483050723,0.58,141.16,141.05,27.83874689]
[1763483050938,9.71778689,141.13,141.07,9.78882769]
[1763483051143,9.71778689,141.13,141.09,9.78882769]
[1763483051329,9.71778689,141.15,141.09,9.78882769]
[1763483051653,9.71778689,141.14,141.09,10.47882769]
[1763483051847,9.71778689,141.14,141.1,0.69]
[1763483052146,9.71778689,141.14,141.11,4.4]
[1763483052924,9.71778689,141.15,141.12,0.72]
[1763483053124,9.71778689,141.14,141.11,4.4]
[1763483053852,18.12096,141.19,141.11,4.4]
[1763483053853,9.71778689,141.17,141.12,0.72]
[1763483054057,9.71778689,141.19,141.13,9.78882769]
[1763483054349,9.71778689,141.18,141.13,9.78882769]
[1763483054532,9.71778689,141.18,141.13,10.50882769]
[1763483054734,9.71778689,141.18,141.14,0.72]
[1763483054935,9.71778689,141.17,141.11,9.71778689]
[1763483055122,9.71778689,141.15,141.12,0.72]
[1763483055323,9.71778689,141.14,141.1,18.84096]
[1763483055542,9.71778689,141.15,141.11,4.4]
[1763483055755,0.15,141.18,141.12,4.4]
[1763483055954,0.15,141.18,141.01,0.70916956]
[1763483055955,9.71778689,141.13,141.07,10.50882769]
[1763483056256,9.71778689,141.12,141.08,5.12]
[1763483056643,0.73,141.16,141.08,4.4]
[1763483056850,5.82045446,141.13,141.08,5.12]
[1763483057248,5.82045446,141.12,141.08,4.4]
[1763483057450,0.15,141.16,141.09,0.72]
[1763483057657,0.15,141.17,141.09,0.72]
[1763483057963,0.73,141.17,141.06,28.62978769]
[1763483058270,5.82045446,141.09,141.07,4.4]
[1763483058432,18.12096,141.16,141.07,4.4]
[1763483058433,5.82045446,141.08,141.07,4.4]
[1763483058865,0.58,141.12,141.07,4.4]
[1763483058866,5.82045446,141.09,141.07,4.4]
[1763483059074,5.82045446,141.09,141.05,0.72]
[1763483059238,5.82045446,141.09,141.07,4.4]
[1763483059843,5.82045446,141.1,141.07,4.4]
[1763483060063,5.82045446,141.1,141.07,5.12]
[1763483060240,0.15,141.15,141.07,5.12]
[1763483060439,5.82045446,141.12,141.07,4.4]
[1763483060639,5.82045446,141.12,141.08,0.72]
[1763483060850,5.82045446,141.11,141.08,0.72]
[1763483061049,0.73,141.15,141.08,0.72]
[1763483061249,5.82045446,141.11,141.08,0.72]
[1763483061448,5.82045446,141.12,141.08,0.72]
[1763483061773,5.82045446,141.11,141.08,0.72]
[1763483061940,5.82045446,141.11,141.09,4.4]
[1763483062368,5.82045446,141.1,141.07,4.4]
[1763483063065,5.82045446,141.08,141.07,4.4]
[1763483063249,5.82045446,141.1,141.07,4.4]
[1763483063449,0.73,141.15,141.07,5.06]
[1763483063656,5.82045446,141.1,141.07,5.06]
[1763483063952,5.82045446,141.09,141.07,4.4]
[1763483065168,6.40045446,141.08,141.05,4.4]
[1763483065355,5.82045446,141.06,141.05,4.4]
[1763483065742,6.40045446,141.06,140.99,18.78096]
[1763483065937,5.82045446,141.03,141.0,4.4]
[1763483066379,5.82045446,141.04,141.01,0.66]
[1763483066751,5.82045446,141.02,140.98,0.86]
[1763483067067,5.82045446,141.03,140.99,5.06]
[1763483067248,5.82045446,141.04,140.99,5.06]
[1763483067449,18.70096,141.09,141.0,0.66]
[1763483067753,5.82045446,141.04,141.0,0.66]
[1763483068167,5.82045446,141.04,141.01,4.38]
[1763483068461,5.82045446,141.06,141.02,4.38]
[1763483068664,0.15,141.09,141.02,4.38]
[1763483068846,5.82045446,141.06,141.02,5.04]
[1763483069468,5.82045446,141.07,141.02,5.04]
[1763483069763,5.82045446,141.07,141.02,4.38]
[1763483070068,5.82045446,141.09,141.03,0.66]
[1763483070265,5.82045446,141.09,141.03,6.48045446]
[1763483070763,0.15,141.11,141.03,6.48045446]
[1763483070764,5.82045446,141.1,141.04,0.66]
[1763483070935,0.58,141.12,141.04,0.66]
[1763483070936,0.15,141.12,141.06,18.12096]
[1763483071140,5.82045446,141.13,141.06,18.12096]
[1763483071445,5.82045446,141.12,141.07,0.66]
[1763483071649,5.82045446,141.12,141.08,4.38]
[1763483071847,0.15,141.14,141.08,4.38]
[1763483071848,5.82045446,141.13,141.08,4.38]
[1763483072041,5.82045446,141.12,141.08,5.04]
[1763483073268,5.82045446,141.12,141.09,4.38]
[1763483073463,5.82045446,141.12,141.05,9.78882769]
[1763483073464,5.82045446,141.1,141.05,0.66]
[1763483073766,5.82045446,141.1,140.98,0.2]
[1763483073767,5.82045446,141.08,141.03,0.66]
[1763483073975,0.15,141.09,141.03,0.66]
[1763483073976,5.82045446,141.07,141.03,0.66]
[1763483074142,0.58,141.13,141.01,0.66]
[1763483074143,5.82045446,141.05,141.01,0.66]
[1763483074558,5.82045446,141.06,141.02,4.38]
[1763483074742,0.73,141.08,141.02,4.38]
[1763483074743,5.82045446,141.05,141.02,4.38]
[1763483075062,5.82045446,141.05,141.01,0.66]
[1763483075262,5.82045446,141.06,141.02,4.38]
[1763483075469,5.82045446,141.07,141.02,4.38]
[1763483075664,5.82045446,141.09,141.03,0.66]
[1763483075968,0.15,141.11,141.03,0.66]
[1763483075969,5.97045446,141.08,141.03,0.66]
[1763483076176,0.15,141.1,141.03,0.66]
[1763483076341,5.82045446,141.09,141.03,6.48045446]
[1763483076538,5.82045446,141.09,141.04,0.66]
[1763483077275,5.82045446,141.07,141.05,4.38]
[1763483077573,5.82045446,141.06,141.05,4.38]
[1763483077957,5.82045446,141.06,141.0,10.44882769]
[1763483078151,5.82045446,141.06,141.01,5.04]
[1763483078550,5.82045446,141.06,141.01,4.38]
[1763483078752,5.82045446,141.06,141.02,0.66]
[1763483080158,0.58,141.08,140.99,5.82045446]
[1763483080159,5.82045446,141.05,141.03,4.38]
[1763483080873,5.82045446,141.04,141.03,4.38]
[1763483081368,6.40045446,141.04,140.98,0.2]
[1763483081566,5.82045446,141.02,140.99,4.38]
[1763483081761,5.82045446,141.02,140.98,0.2]
[1763483081762,0.58,141.03,140.98,0.2]
[1763483082079,5.82045446,140.99,140.98,0.2]
[1763483082251,6.40045446,140.99,140.98,0.2]
[1763483082756,11.63864135,140.99,140.98,0.2]
[1763483082958,11.63847436,140.99,140.98,0.2]
[1763483083354,6.40045446,140.99,140.98,0.2]
[1763483084286,5.82045446,141.0,140.98,0.2]
[1763483084485,5.82045446,140.99,140.98,0.2]
[1763483084656,6.40045446,140.99,140.98,0.2]
[1763483085384,11.61933496,140.99,140.98,0.2]
[1763483086090,29.74029496,140.99,140.92,4.58]
[1763483086296,5.82045446,140.93,140.92,4.58]
[1763483086656,5.82045446,140.94,140.92,4.58]
[1763483087501,5.82045446,140.96,140.93,0.66]
[1763483087682,5.82045446,140.97,140.93,0.66]
[1763483087882,0.58,141.0,140.93,5.04]
[1763483088079,0.58,141.0,140.92,4.58]
[1763483088080,5.82045446,140.95,140.92,4.58]
[1763483088284,11.60941773,141.0,140.92,0.2]
[1763483088285,5.82045446,140.93,140.92,0.2]
[1763483088666,6.40045446,140.93,140.92,0.2]
[1763483089368,5.82045446,140.95,140.92,0.86]
[1763483089568,22.65096,140.99,140.92,0.2]
[1763483089569,5.82045446,140.94,140.92,0.2]
[1763483089876,5.82045446,140.93,140.92,0.2]
[1763483090069,5.82045446,140.95,140.92,0.2]
[1763483090485,5.82045446,140.96,140.92,0.86]
[1763483090674,5.82045446,140.94,140.92,0.86]
[1763483090880,18.85096,140.99,140.92,0.2]
[1763483091191,5.82045446,140.94,140.92,0.2]
[1763483091372,5.82045446,140.93,140.92,0.2]
[1763483092188,6.40045446,140.93,140.92,0.2]
[1763483092393,5.82045446,140.93,140.92,0.2]
[1763483092697,5.82045446,140.94,140.92,0.86]
[1763483092871,5.82045446,140.95,140.92,0.86]
[1763483093068,5.82045446,140.96,140.92,0.86]
[1763483093280,0.73,140.99,140.92,5.24]
[1763483093281,5.82045446,140.95,140.92,5.24]
[1763483093687,5.82045446,140.95,140.93,0.66]
[1763483093910,5.82045446,140.96,140.93,0.66]
[1763483094413,5.82045446,140.97,140.93,0.66]
[1763483094778,0.15,141.0,140.93,0.66]
[1763483094779,5.82045446,140.98,140.93,0.66]
[1763483095696,5.82045446,140.99,140.94,4.38]
[1763483095896,5.82045446,140.99,140.94,10.20045446]
[1763483096211,5.82045446,140.99,140.95,0.66]
[1763483096415,5.82045446,141.0,140.95,0.66]
[1763483096630,5.82045446,140.98,140.96,4.38]
[1763483098383,0.58,141.01,140.96,4.38]
[1763483098384,5.82045446,140.97,140.96,4.38]
[1763483098583,5.82045446,140.97,140.93,0.66]
[1763483098780,5.82045446,140.97,140.94,4.38]
[1763483099108,5.82045446,140.98,140.94,4.38]
[1763483099612,5.82045446,140.98,140.94,5.04]
[1763483099913,5.82045446,140.98,140.95,0.66]
[1763483100210,5.97045446,140.97,140.92,0.2]
[1763483100399,5.82045446,140.97,140.93,4.38]
[1763483100710,0.15,141.05,140.97,9.78882769]
[1763483100906,0.15,141.05,140.96,23.94141446]
[1763483100907,5.82045446,141.03,140.98,5.04]
[1763483101106,5.97045446,141.02,140.98,4.38]
[1763483101324,5.82045446,141.01,140.98,4.38]
[1763483101517,0.15,141.02,140.98,4.38]
[1763483101518,5.82045446,141.02,140.98,4.38]
[1763483101823,5.82045446,141.0,140.99,4.38]
[1763483102007,18.12096,141.06,140.99,4.38]
[1763483102008,0.15,141.05,140.99,4.38]
[1763483102206,5.82045446,141.07,141.01,15.60928215]
[1763483102411,5.82045446,141.09,141.03,5.82045446]
[1763483102600,5.82045446,141.08,141.04,4.38]
[1763483102801,5.82045446,141.08,141.03,0.66]
[1763483103003,0.58,141.11,141.04,4.38]
[1763483103216,5.82045446,141.05,140.97,0.66]
[1763483103412,0.15,141.04,140.99,4.38]
[1763483103601,18.12096,141.05,140.99,10.20045446]
[1763483103921,5.82045446,141.03,141.0,0.66]
[1763483104116,5.82045446,141.04,141.01,4.38]
[1763483104318,5.82045446,141.03,140.99,0.66]
[1763483104508,5.97045446,141.05,141.0,4.38]
[1763483104709,5.82045446,141.05,141.0,4.38]
[1763483104916,5.82045446,141.05,141.01,0.66]
[1763483105426,5.82045446,141.04,141.01,0.66]
[1763483105724,5.82045446,141.04,141.0,4.38]
[1763483105725,5.82045446,141.03,141.0,4.38]
[1763483105912,5.82045446,141.05,141.0,4.38]
[1763483106226,5.82045446,141.04,141.0,5.04]
[1763483106711,5.82045446,141.05,141.0,4.38]
[1763483106908,18.85096,141.07,141.01,0.66]
[1763483107113,5.82045446,141.05,141.01,0.66]
[1763483107496,18.85096,141.07,140.9,12.91754155]
[1763483107497,5.82045446,141.04,141.02,4.38]
[1763483107700,6.40045446,141.05,141.02,4.38]
[1763483107901,5.82045446,141.04,141.02,4.38]
[1763483108327,0.15,141.06,140.99,0.66]
[1763483108511,5.82045446,141.05,141.02,4.38]
[1763483108706,5.82045446,141.05,140.99,10.44882769]
[1763483108707,0.15,141.04,140.98,18.12096]
[1763483108904,5.90166971,141.16,141.03,5.82045446]
[1763483108905,0.15,141.1,141.03,5.82045446]
[1763483109114,5.82045446,141.05,140.99,0.66]
[1763483109339,0.15,141.04,141.02,4.38]
[1763483109633,5.82045446,141.04,141.02,4.38]
[1763483109808,5.82045446,141.06,141.02,4.38]
[1763483110001,5.97045446,141.08,141.03,0.66]
[1763483110202,5.82045446,141.1,141.04,15.60928215]
[1763483110506,5.82045446,141.08,141.05,4.38]
[1763483111003,5.82045446,141.06,141.01,18.78096]
[1763483111200,5.82045446,141.06,140.92,0.2]
[1763483111201,5.82045446,141.03,140.99,9.78882769]
[1763483111406,5.82045446,141.02,140.99,18.12096]
[1763483111625,5.82045446,141.02,141.0,4.38]
[1763483111927,0.15,141.01,141.0,4.38]
[1763483112108,0.15,141.04,141.0,5.04]
[1763483112317,5.82045446,141.04,141.01,0.66]
[1763483112540,5.82045446,141.02,141.01,4.38]
[1763483113226,5.82045446,141.02,140.98,4.38]
[1763483113530,5.82045446,141.01,140.98,4.38]
[1763483113836,5.82045446,141.01,140.98,5.04]
[1763483114128,0.73,141.05,140.98,5.04]
[1763483114340,0.73,141.05,140.99,9.78882769]
[1763483114543,0.73,141.05,140.97,9.78882769]
[1763483114544,5.82045446,141.01,140.97,0.66]
[1763483114750,5.82045446,141.02,140.98,4.38]
[1763483115040,5.82045446,141.03,140.98,4.38]
[1763483115263,0.15,141.05,140.99,9.78882769]
[1763483115410,5.82045446,141.06,141.0,15.60928215]
[1763483115607,5.82045446,141.05,141.0,16.26928215]
[1763483115809,0.15,141.07,141.01,6.48045446]
[1763483115810,5.82045446,141.06,141.01,6.48045446]
[1763483116009,0.15,141.07,141.02,4.38]
[1763483116010,5.82045446,141.07,141.02,4.38]
[1763483116427,0.58,141.08,141.02,5.04]
[1763483116639,5.82045446,141.09,141.03,16.26928215]
[1763483116851,7.90166971,141.19,141.05,19.51945972]
[1763483116852,9.73063203,141.1,141.05,19.51945972]
[1763483117050,9.73063203,141.12,141.07,9.78882769]
[1763483117344,9.73063203,141.11,141.07,0.66]
[1763483117553,9.73063203,141.09,141.08,4.38]
[1763483117709,9.73063203,141.1,141.08,4.38]
[1763483117914,9.73063203,141.09,141.08,4.38]
[1763483118123,9.73063203,141.1,141.08,4.38]
[1763483118450,9.73063203,141.11,141.08,4.38]
[1763483118871,9.73063203,141.1,141.06,0.66]
[1763483119077,9.88063203,141.09,141.08,4.38]
[1763483119264,9.88063203,141.09,141.04,0.66]
[1763483119442,9.73063203,141.06,141.05,4.38]
[1763483120442,9.73063203,141.06,141.02,0.66]
[1763483120640,9.73063203,141.06,141.04,4.38]
[1763483120838,9.73063203,141.05,141.04,4.38]
[1763483121442,9.73063203,141.06,141.04,4.38]
[1763483121664,9.73063203,141.07,141.04,4.38]
[1763483121850,9.73063203,141.09,141.05,0.69]
[1763483122061,0.15,141.1,141.05,0.69]
[1763483122249,9.73063203,141.1,141.05,0.69]
[1763483122642,9.73063203,141.1,141.06,9.78882769]
[1763483122839,0.73,141.16,141.08,9.78882769]
[1763483123037,9.73063203,141.13,141.09,4.38]
[1763483123644,9.73063203,141.11,141.04,0.69]
[1763483123862,0.73,141.12,141.04,0.69]
[1763483123863,9.73063203,141.09,141.05,14.16882769]
[1763483124068,9.73063203,141.09,141.05,14.85882769]
[1763483124263,0.73,141.12,141.03,18.12096]
[1763483124264,9.73063203,141.08,141.06,4.38]
[1763483124471,9.88063203,141.07,141.0,0.69]
[1763483124789,9.88063203,141.07,141.01,4.38]
[1763483124790,9.73063203,141.03,141.01,4.38]
[1763483125094,9.73063203,141.04,141.01,4.38]
[1763483125483,9.73063203,141.04,141.01,5.07]
[1763483125786,9.73063203,141.04,141.01,4.38]
[1763483126091,9.73063203,141.04,141.01,5.07]
[1763483126295,9.73063203,141.06,141.02,0.69]
[1763483126664,0.15,141.05,141.01,4.38]
[1763483126992,9.73063203,141.04,141.0,0.69]
[1763483127172,9.73063203,141.05,141.02,4.38]
[1763483127671,9.73063203,141.04,141.02,4.38]
[1763483128696,9.73063203,141.05,141.02,4.38]
[1763483128992,9.73063203,141.05,141.02,5.07]
[1763483129195,0.73,141.07,141.02,5.07]
[1763483129397,9.73063203,141.06,141.02,5.07]
[1763483129896,9.73063203,141.05,141.02,4.38]
[1763483130275,0.15,141.07,141.03,0.69]
[1763483130480,9.73063203,141.09,141.04,19.51945972]
[1763483130777,9.73063203,141.1,141.04,19.51945972]
[1763483130969,9.73063203,141.11,141.05,10.42063203]
[1763483131178,9.73063203,141.1,141.06,4.38]
[1763483131376,0.73,141.11,141.06,4.38]
[1763483131693,9.88063203,141.1,141.06,5.07]
[1763483131905,9.73063203,141.1,141.07,0.69]
[1763483132188,9.73063203,141.11,141.06,4.38]
[1763483132398,9.73063203,141.11,141.06,5.07]
[1763483132604,9.73063203,141.11,141.07,0.69]
[1763483132773,9.73063203,141.11,141.06,5.07]
[1763483132968,0.73,141.13,141.06,5.07]
[1763483133172,9.73063203,141.11,141.06,5.07]
[1763483133372,0.15,141.13,141.06,5.07]
[1763483133593,9.73063203,141.1,141.06,5.07]
[1763483134405,9.73063203,141.1,141.04,28.59978769]
[1763483134583,9.73063203,141.09,141.05,4.38]
[1763483134783,9.73063203,141.08,141.05,4.38]
[1763483135179,9.73063203,141.08,141.05,5.07]
[1763483135378,0.15,141.1,141.05,5.07]
[1763483135379,9.73063203,141.09,141.05,5.07]
[1763483136498,21.42432014,141.2,141.05,5.07]
[1763483136499,3.70704974,141.26,141.15,9.78882769]
[1763483136775,3.70704974,141.26,141.13,33.55992914]
[1763483136776,0.71,141.25,141.19,27.85159203]
[1763483136982,0.71,141.25,141.17,18.12096]
[1763483136983,9.73063203,141.23,141.2,4.38]
[1763483137204,9.73063203,141.22,141.21,9.6561777]
[1763483137704,0.71,141.22,141.21,9.6561777]
[1763483138008,10.44063203,141.22,141.21,9.6561777]
[1763483138606,0.71,141.22,141.21,9.6561777]
[1763483138804,10.44063203,141.22,141.21,9.6561777]
[1763483139322,0.71,141.22,141.21,9.6561777]
[1763483140225,9.73063203,141.23,141.21,9.6561777]
[1763483140521,10.44063203,141.23,141.22,5.2761777]
[1763483140718,0.71,141.23,141.22,5.2761777]
[1763483140922,10.44063203,141.23,141.22,8.9361777]
[1763483141223,10.44063203,141.23,141.19,4.38]
[1763483141516,9.73063203,141.24,141.18,4.38]
[1763483141517,9.73063203,141.2,141.18,4.38]
[1763483141689,9.73063203,141.19,141.18,4.38]
[1763483141885,9.73063203,141.19,141.17,4.38]
[1763483142086,9.73063203,141.18,141.17,4.38]
[1763483142895,9.73063203,141.18,141.13,0.69]
[1763483143103,9.73063203,141.17,141.14,4.38]
[1763483143296,9.73063203,141.18,141.14,4.38]
[1763483143505,9.73063203,141.17,141.14,4.38]
[1763483143712,9.73063203,141.18,141.14,5.07]
[1763483144010,9.73063203,141.19,141.14,5.07]
[1763483144310,9.73063203,141.18,141.14,4.38]
[1763483144489,9.73063203,141.18,141.15,0.69]
[1763483146297,0.69,141.23,141.15,0.69]
[1763483146501,18.12096,141.25,141.16,9.73063203]
[1763483146707,0.69,141.27,141.18,9.73063203]
[1763483146913,9.73063203,141.26,141.21,9.73063203]
[1763483147230,2.0,141.34,141.16,27.90978769]
[1763483147231,9.73063203,141.25,141.22,4.38]
[1763483147535,9.73063203,141.27,141.22,14.80063203]
[1763483147889,9.73063203,141.27,141.23,5.07]
[1763483148312,9.73063203,141.26,141.24,4.38]
[1763483148614,9.73063203,141.26,141.2,10.42063203]
[1763483148795,9.73063203,141.27,141.22,0.69]
[1763483149002,9.73063203,141.25,141.23,4.38]
[1763483149610,9.73063203,141.24,141.19,0.69]
[1763483149919,9.73063203,141.23,141.2,4.38]
[1763483150162,9.73063203,141.23,141.19,0.69]
[1763483150296,9.73063203,141.23,141.2,4.38]
[1763483150491,9.73063203,141.24,141.21,4.38]
[1763483150813,9.73063203,141.28,141.23,9.73063203]
[1763483150996,9.73063203,141.27,141.22,0.69]
[1763483151205,9.73063203,141.25,141.23,4.38]
[1763483151396,9.73063203,141.25,141.24,4.38]
[1763483151703,10.42063203,141.25,141.22,4.38]
[1763483151884,9.73063203,141.23,141.22,4.38]
[1763483153421,9.73063203,141.23,141.22,9.62050363]
[1763483153586,9.73063203,141.23,141.22,4.38]
[1763483153790,9.73063203,141.23,141.22,9.61903979]
[1763483154433,9.73063203,141.23,141.22,4.38]
[1763483156040,9.73063203,141.23,141.21,4.38]
[1763483156729,9.73063203,141.23,141.22,5.23628194]
[1763483157239,9.73063203,141.23,141.21,4.38]
[1763483157411,9.73063203,141.23,141.22,0.69]
[1763483157734,0.1,141.31,141.22,0.69]
[1763483157735,9.73063203,141.26,141.22,0.69]
[1763483157945,0.1,141.31,141.22,10.42063203]
[1763483158239,9.73063203,141.28,141.22,10.42063203]
[1763483158425,9.73063203,141.26,141.22,0.69]
[1763483158738,9.73063203,141.23,141.22,4.38]
[1763483160012,0.69,141.27,141.22,4.38]
[1763483160344,9.73063203,141.24,141.22,4.38]
[1763483161230,9.73063203,141.26,141.23,0.69]
[1763483161542,9.73063203,141.29,141.23,10.42063203]
[1763483161740,0.1,141.31,141.25,9.73063203]
[1763483161741,9.73063203,141.3,141.25,9.73063203]
[1763483161940,9.73063203,141.3,141.26,4.36]
[1763483162246,9.73063203,141.3,141.26,5.05]
[1763483162425,0.69,141.29,141.21,0.69]
[1763483162626,9.73063203,141.24,141.22,4.36]
[1763483162836,9.73063203,141.24,141.23,4.36]
[1763483163212,0.69,141.28,141.23,4.36]
[1763483163417,9.73063203,141.24,141.23,4.36]
[1763483163735,9.73063203,141.25,141.23,4.36]
[1763483163923,9.73063203,141.25,141.16,9.78882769]
[1763483163924,0.69,141.28,141.16,9.78882769]
[1763483164123,9.73063203,141.27,141.21,9.73063203]
[1763483164432,9.73063203,141.24,141.22,4.36]
[1763483165333,9.73063203,141.24,141.2,0.69]
[1763483165334,9.73063203,141.23,141.17,0.69]
[1763483165535,9.73063203,141.2,141.18,4.36]
[1763483165919,9.73063203,141.19,141.15,0.69]
[1763483166123,0.69,141.23,141.16,4.36]
[1763483166317,9.73063203,141.19,141.16,4.36]
[1763483166518,9.73063203,141.2,141.16,5.05]
[1763483166930,9.73063203,141.2,141.14,9.73063203]
[1763483167251,9.73063203,141.19,141.15,5.05]
[1763483167621,9.73063203,141.19,141.12,18.12096]
[1763483167837,9.73063203,141.17,141.13,5.05]
[1763483168225,9.73063203,141.17,141.14,0.69]
[1763483168820,18.81096,141.21,141.15,4.36]
[1763483169049,9.73063203,141.19,141.15,4.36]
[1763483169270,9.73063203,141.19,141.15,5.05]
[1763483169951,9.73063203,141.19,141.15,4.36]
[1763483170154,9.73063203,141.2,141.16,0.69]
[1763483170860,9.73063203,141.19,141.16,0.69]
[1763483171060,0.69,141.23,141.16,0.69]
[1763483171359,9.73063203,141.19,141.16,0.69]
[1763483171956,9.73063203,141.17,141.12,0.69]
[1763483172161,9.73063203,141.17,141.13,4.36]
[1763483172558,0.72,141.2,141.14,0.72]
[1763483172874,9.73063203,141.17,141.14,0.72]
[1763483173081,9.73063203,141.16,141.14,0.72]
[1763483173554,9.73063203,141.16,141.15,4.36]
[1763483174144,9.73063203,141.16,141.12,0.72]
[1763483174349,9.73063203,141.16,141.09,9.73063203]
[1763483174350,9.73063203,141.13,141.09,0.72]
[1763483174574,9.73063203,141.12,141.1,4.36]
[1763483174774,9.73063203,141.13,141.1,4.36]